fUSD/lending_fUSD_20240601
["ID","MTS","AMOUNT","RATE_DAILY","PERIOD"]
[328346564,1717200015248,310.64211874,0.00034802,30]
[328346566,1717200338122,-252.89515552,0.00017117,2]
[328346567,1717200338143,-648.0,0.00017117,2]
[328346568,1717200338163,-593.97814638,0.00017118,2]
[328346569,1717200432119,-444.52678863,0.00017118,2]
[328346570,1717200432141,-300.0,0.00019725,2]
[328346571,1717200432161,-135.19708217,0.000201,2]
[328346572,1717200518260,-200.0,0.00034809,120]
[328346612,1717200632111,-155.0,0.0002,2]
[328346613,1717200632120,-295.037073,0.000209,2]
[328346614,1717200632133,-1605.962927,0.000209,2]
[328346615,1717200632143,-71.88171279,0.00024384,2]
[328346616,1717200632155,-81.79828721,0.00024384,2]
[328346617,1717200632166,-153.6,0.00024384,2]
[328346619,1717200632177,-1050.0,0.00025,2]
[328346621,1717200632187,-499.99,0.00025,2]
[328346623,1717200632196,-1100.0,0.00027,2]
[328346624,1717200632206,-150.99,0.00027,2]
[328346625,1717200632215,-354.05,0.00027851,2]
[328346626,1717200632224,-1150.0,0.00029,2]
[328346627,1717200632234,-250.0,0.00029763,2]
[328346628,1717200632243,-200.0,0.00029764,2]
[328346629,1717200632252,-23880.0,0.00029794,2]
[328346630,1717200632261,-2000.0,0.00029823,2]
[328346631,1717200632271,-250.0,0.00029886,2]
[328346632,1717200632280,-2008.28901866,0.000299,2]
[328346633,1717200632290,-438.34,0.00030036,2]
[328346634,1717200632299,-354.05,0.00030114,2]
[328346635,1717200632308,-2500.0,0.00030897,2]
[328346636,1717200632317,-7500.0,0.00030897,2]
[328346637,1717200632326,-6762.22769151,0.00030978,2]
[328346638,1717200632336,-5286.52758762,0.00030997,4]
[328346639,1717200632363,-6947.77168517,0.00030997,4]
[328346640,1717200632374,-5517.93372114,0.00030997,4]
[328346641,1717200632385,-749.56,0.00030997,4]
[328346642,1717200632426,-387.99999996,0.00030997,4]
[328346654,1717200638173,-445.0744442,0.00030997,4]
[328346655,1717200638281,-6008.95566044,0.00030997,4]
[328346656,1717200638389,-28139.57547834,0.00030997,4]
[328346680,1717200641341,-1662.14046535,0.00030997,4]
[328346682,1717200643200,-5663.74332444,0.00030997,4]
[328346683,1717200643311,-28537.29810819,0.00030997,4]
[328346684,1717200643322,-4310.31760186,0.00030997,4]
[328346685,1717200643334,-1413.74197324,0.00030997,4]
[328346686,1717200643345,-10666.40961869,0.00030997,4]
[328346687,1717200643356,-1315.02723563,0.00030997,4]
[328346688,1717200643367,-2465.0,0.00030997,4]
[328346689,1717200643378,-1589.42991125,0.00030997,4]
[328346690,1717200643478,-1856.94597047,0.00030997,4]
[328346691,1717200643534,-319628.1245381,0.00030997,4]
[328346705,1717200646417,-310.83558846,0.00030997,4]
[328346706,1717200646636,-494130.96735239,0.00030997,4]
[328346707,1717200646646,-245000.0,0.00030998,2]
[328346709,1717200646657,-500.0,0.00030998,2]
[328346710,1717200646666,-2452.1479,0.00030998,2]
[328346711,1717200646675,-100000.0,0.00030998,2]
[328346712,1717200646684,-1000.0,0.00030998,2]
[328346713,1717200646694,-1200.0,0.00031,2]
[328346714,1717200646703,-154.77633647,0.00031045,7]
[328346715,1717200646713,-153.66734649,0.00031054,7]
[328346716,1717200646722,-1351.28035356,0.00031126,7]
[328346717,1717200646731,-154.35727732,0.00031172,7]
[328346718,1717200646741,-235.80124906,0.00031175,7]
[328346719,1717200646750,-235.80124906,0.00031188,7]
[328346721,1717200646760,-1351.28035356,0.00031198,7]
[328346722,1717200646769,-1351.28035356,0.00031208,7]
[328346723,1717200646779,-154.35727732,0.00031345,7]
[328346724,1717200646789,-1351.28035356,0.00031408,7]
[328346725,1717200646798,-235.80124906,0.00031409,7]
[328346726,1717200646808,-150.0,0.00031443,7]
[328346727,1717200646817,-154.61166242,0.00031501,7]
[328346728,1717200646826,-154.35727732,0.00031532,7]
[328346729,1717200646836,-159.19545041,0.0003155,7]
[328346730,1717200646845,-154.61166242,0.00031652,7]
[328346731,1717200646854,-180.37209279,0.00031652,7]
[328346732,1717200646864,-1351.28035356,0.00031689,7]
[328346733,1717200646873,-150.7953095,0.00031773,7]
[328346734,1717200646882,-154.61166242,0.00031854,7]
[328346735,1717200646891,-153.66734649,0.00031929,7]
[328346736,1717200646900,-154.35727732,0.00031929,7]
[328346737,1717200646909,-235.80124906,0.00031935,7]
[328346738,1717200646918,-235.80124906,0.00031999,7]
[328346739,1717200646927,-154.61166242,0.00032023,7]
[328346740,1717200646937,-235.80124906,0.00032047,7]
[328346741,1717200646946,-1351.28035356,0.0003209,7]
[328346742,1717200646955,-154.61166242,0.00032111,7]
[328346743,1717200646964,-152.81332526,0.00032158,7]
[328346744,1717200646974,-154.35727732,0.00032196,7]
[328346745,1717200646983,-153.66734649,0.00032228,7]
[328346746,1717200646992,-153.66734649,0.00032229,7]
[328346747,1717200647001,-159.71620643,0.0003223,7]
[328346748,1717200647012,-155.29733056,0.00032243,7]
[328346749,1717200647024,-154.3648177,0.00032257,7]
[328346750,1717200647033,-154.35727732,0.0003227,7]
[328346751,1717200647042,-235.80124906,0.00032286,7]
[328346752,1717200647052,-154.35727732,0.00032298,7]
[328346753,1717200647061,-154.61166242,0.00032318,7]
[328346754,1717200647071,-160.83439444,0.00032359,7]
[328346755,1717200647080,-354.05,0.00032378,2]
[328346756,1717200647089,-153.66734649,0.00032455,7]
[328346757,1717200647099,-154.53628342,0.00032457,7]
[328346758,1717200647109,-154.61166242,0.00032459,7]
[328346759,1717200647118,-2370.46,0.00032548,30]
[328346760,1717200647127,-150.0,0.00032552,7]
[328346761,1717200647136,-1351.28035356,0.00032599,7]
[328346762,1717200647145,-154.61166242,0.00032614,7]
[328346763,1717200647154,-154.53628342,0.00032616,7]
[328346764,1717200647309,-180.0,0.00032643,2]
[328346765,1717200647319,-159.19545043,0.00032651,7]
[328346766,1717200647329,-153.66734649,0.00032656,7]
[328346767,1717200647339,-166.66666667,0.00032687,7]
[328346768,1717200647348,-154.61166242,0.00032768,7]
[328346769,1717200647358,-235.80124906,0.00032774,7]
[328346770,1717200647367,-153.66734649,0.00032784,7]
[328346771,1717200647377,-1351.28035356,0.0003279,7]
[328346772,1717200647386,-154.61166242,0.00032806,7]
[328346773,1717200647396,-154.61166242,0.00032822,7]
[328346774,1717200647405,-154.61166242,0.00032867,7]
[328346775,1717200647416,-154.35727732,0.00032892,7]
[328346776,1717200647426,-150.7953095,0.00032941,7]
[328346777,1717200647436,-155.55650691,0.00032965,4]
[328346778,1717200647446,-620.6095,0.0003297,2]
[328346779,1717200647455,-154.61166242,0.00032982,7]
[328346780,1717200647465,-200.0,0.00033,10]
[328346781,1717200647474,-1250.0,0.00033,2]
[328346782,1717200647483,-155.0,0.00033031,4]
[328346783,1717200647492,-159.71620643,0.00033032,7]
[328346784,1717200647502,-1351.28035356,0.00033038,7]
[328346785,1717200647511,-235.80124906,0.00033039,7]
[328346786,1717200647520,-155.29733057,0.00033097,7]
[328346787,1717200647530,-1351.28035356,0.00033115,7]
[328346788,1717200647539,-235.80124906,0.00033124,7]
[328346789,1717200647548,-1351.28035356,0.00033131,7]
[328346790,1717200647559,-155.0,0.00033132,4]
[328346791,1717200647568,-154.53628342,0.0003314,7]
[328346792,1717200647577,-1351.28035356,0.00033143,7]
[328346793,1717200647586,-150.7953095,0.00033147,7]
[328346794,1717200647596,-160.33226932,0.00033174,7]
[328346795,1717200647605,-235.80124906,0.00033178,7]
[328346796,1717200647614,-1351.28035356,0.00033182,7]
[328346797,1717200647623,-279.0,0.00033189,5]
[328346798,1717200647633,-10000.0,0.00033198,2]
[328346799,1717200647642,-1791.40251707,0.000332,5]
[328346800,1717200647651,-150.0,0.000332,7]
[328346801,1717200647661,-632.2364226,0.0003329,2]
[328346802,1717200647670,-281.2838789,0.0003329,2]
[328346803,1717200647679,-163.66855681,0.00033298,2]
[328346804,1717200647688,-399.36521348,0.00033298,4]
[328346805,1717200647697,-258.01155512,0.00033298,2]
[328346806,1717200647707,-155.1859002,0.00033298,4]
[328346807,1717200647716,-186.23625891,0.00033298,4]
[328346808,1717200647727,-358.07255743,0.00033298,4]
[328346809,1717200647736,-364.89182345,0.00033298,4]
[328346810,1717200647746,-155.0,0.00033298,4]
[328346811,1717200647755,-620.00333459,0.00033298,4]
[328346812,1717200647765,-155.0,0.00033298,4]
[328346813,1717200647774,-155.0,0.00033298,4]
[328346814,1717200647783,-325.46904445,0.00033298,4]
[328346815,1717200647792,-541.80210205,0.00033298,4]
[328346816,1717200647801,-4014.36962356,0.00033299,2]
[328346817,1717200647811,-1769.07333302,0.00033299,4]
[328346818,1717200647821,-215.34449779,0.00033299,4]
[328346819,1717200647830,-248.30242774,0.00033299,4]
[328346820,1717200647840,-517.14339415,0.00033299,11]
[328346821,1717200647849,-1145.56,0.00033299,11]
[328346822,1717200647858,-1145.56,0.00033299,11]
[328346823,1717200647867,-1145.56,0.00033299,11]
[328346824,1717200647876,-1145.56,0.00033299,11]
[328346825,1717200647886,-1145.56,0.00033299,11]
[328346826,1717200647895,-1145.56,0.00033299,11]
[328346827,1717200647904,-1145.56,0.00033299,11]
[328346828,1717200647914,-1145.56,0.00033299,11]
[328346829,1717200647923,-1145.56,0.00033299,11]
[328346830,1717200647932,-1145.56,0.00033299,11]
[328346831,1717200647942,-1145.56,0.00033299,11]
[328346832,1717200647951,-1145.56,0.00033299,11]
[328346833,1717200647960,-1145.56,0.00033299,11]
[328346834,1717200647969,-1145.56,0.00033299,11]
[328346835,1717200647978,-1145.56,0.00033299,11]
[328346836,1717200647988,-1145.56,0.00033299,11]
[328346837,1717200647997,-1145.56,0.00033299,11]
[328346838,1717200648006,-1145.56,0.00033299,11]
[328346839,1717200648019,-1145.56,0.00033299,11]
[328346840,1717200648028,-1145.56,0.00033299,11]
[328346841,1717200648037,-1145.56,0.00033299,11]
[328346842,1717200648046,-1145.56,0.00033299,11]
[328346843,1717200648056,-1145.56,0.00033299,11]
[328346844,1717200648065,-1145.57203962,0.00033299,11]
[328346845,1717200648075,-60691.79911795,0.000333,9]
[328346846,1717200648084,-174686.61366688,0.000333,5]
[328346847,1717200851212,631.8,0.00030279,120]
[328346848,1717201343899,-155.0,0.00020799,2]
[328346849,1717201343921,-300.0,0.000208,2]
[328346850,1717201343944,-1956.0,0.000213,2]
[328346851,1717201343967,-627.0,0.000213,2]
[328346852,1717201343989,-935.92,0.00021484,2]
[328346853,1717201344011,-172.76,0.00024384,2]
[328346854,1717201344032,-1513.32,0.00024384,2]
[328346855,1717201536198,-300.0,0.00019725,2]
[328346856,1717201536220,-226.49538654,0.000201,2]
[328346857,1717201536239,-300.0,0.000207,2]
[328346858,1717201536259,-623.78685082,0.000213,2]
[328346860,1717201614201,-150.0,0.00034231,120]
[328346861,1717201614241,-150.0,0.00034809,120]
[328346862,1717201614269,-200.0,0.00034832,120]
[328346863,1717201614297,-150.0,0.00034949,120]
[328346872,1717201832378,-300.0,0.00019725,2]
[328346873,1717201832388,-226.49538654,0.00021299,2]
[328346874,1717201832397,-155.0,0.00021299,2]
[328346875,1717201832406,-1332.21314918,0.000213,2]
[328346876,1717201832416,-158.61,0.00024384,2]
[328346877,1717201832425,-447.21,0.00027413,2]
[328346878,1717201832434,-7920.56,0.00027413,2]
[328346879,1717201832443,-935.92,0.00027413,2]
[328346880,1717201832452,-191.95,0.00027413,2]
[328346881,1717201832462,-200.0,0.00028491,2]
[328346882,1717201832471,-200.0,0.00028821,2]
[328346883,1717201832480,-150.0,0.00028835,2]
[328346884,1717201832489,-500.0,0.00028869,2]
[328346885,1717201832498,-250.0,0.00028978,2]
[328346886,1717201832507,-250.0,0.00029012,2]
[328346887,1717201832516,-7844.14146428,0.00029283,2]
[328346888,1717201832532,-10637.29583004,0.00029283,2]
[328346889,1717201832547,-2942.69004989,0.00029283,2]
[328346890,1717201832558,-2475.87265579,0.00029283,2]
[328346891,1717201832568,-2000.0,0.00029343,2]
[328346892,1717201832577,-250.0,0.00029411,2]
[328346893,1717201832587,-539.91,0.00029496,2]
[328346894,1717201832597,-447.21,0.00029677,2]
[328346895,1717201832606,-750.67,0.00029688,2]
[328346896,1717201832615,-1577.17,0.00029756,2]
[328346897,1717201832625,-2008.28901866,0.000299,2]
[328346898,1717201832634,-7500.0,0.00030797,2]
[328346899,1717201832643,-460.77505985,0.00030897,2]
[328346900,1717201832655,-539.22494015,0.00030897,2]
[328346901,1717201832664,-27501.01761264,0.00030897,2]
[328346902,1717201832674,-35620.21628909,0.00030897,2]
[328346903,1717201832686,-1908.97930362,0.00030897,2]
[328346904,1717201832697,-400.0,0.00030897,2]
[328346905,1717201832708,-967.82884568,0.00030897,2]
[328346906,1717201832719,-1015.32159,0.00030897,2]
[328346907,1717201832730,-2872.14352236,0.00030897,2]
[328346908,1717201832741,-889.15149544,0.00030897,2]
[328346912,1717201838264,-5640.52606362,0.00030897,2]
[328346913,1717201838276,-539.84238113,0.00030897,2]
[328346914,1717201838287,-327.9420034,0.00030897,2]
[328346915,1717201838387,-3562.07904434,0.00030897,2]
[328346916,1717201838506,-3473.69212895,0.00030897,2]
[328346917,1717201838518,-5000.0,0.00030897,2]
[328346918,1717201838529,-1009.1586284,0.00030897,2]
[328346927,1717201841851,-3003.39578334,0.00030897,2]
[328346928,1717201841863,-691.31999944,0.00030897,2]
[328346933,1717201843406,-2706.93929284,0.00030897,2]
[328346934,1717201843469,-6556.61946173,0.00030897,2]
[328346935,1717201843591,-17205.60290745,0.00030897,2]
[328346936,1717201843652,-6349.12068868,0.00030897,2]
[328346937,1717201846277,-226.49538654,0.00024974,2]
[328346938,1717201846287,-874.40461296,0.00030897,2]
[328346939,1717201846678,-3035.83334,0.00030897,2]
[328346940,1717202072590,5660.0,0.00015,10]
[328346941,1717202072624,7373.38861575,0.00015,10]
[328346944,1717202739143,-410.31583376,0.00015,2]
[328346945,1717202739166,-1041.04332356,0.00015,2]
[328346946,1717202739187,-13.91516857,0.00024384,2]
[328346962,1717203031576,-550.97767232,0.00015,2]
[328346963,1717203031586,-48.93196158,0.00024184,2]
[328346964,1717203031597,-114.68533879,0.00024184,2]
[328346965,1717203031607,-300.0,0.00024284,2]
[328346966,1717203031616,-139.79483143,0.00024384,2]
[328346967,1717203031625,-153.68,0.00024384,2]
[328346968,1717203031634,-81.13269802,0.00024384,2]
[328346969,1717203031648,-959.91062554,0.00024384,2]
[328346970,1717203031657,-287.91989571,0.00024384,2]
[328346971,1717203031669,-212.08010429,0.00024384,2]
[328346972,1717203031679,-115.1563973,0.00024384,2]
[328346973,1717203031745,-331.05482004,0.00024384,2]
[328346974,1717203031754,-257.58103386,0.00024384,2]
[328346975,1717203031764,-87.4641461,0.00024384,2]
[328346976,1717203031775,-33138.8081564,0.00024384,2]
[328346979,1717203037473,-4309.445875,0.00024384,2]
[328346980,1717203037483,-1045.47618149,0.00024384,2]
[328346981,1717203037493,-1050.0,0.00025,2]
[328346982,1717203037501,-468.22,0.0002631,2]
[328346983,1717203037510,-1100.0,0.00027,2]
[328346984,1717203037519,-150.0,0.00028164,2]
[328346985,1717203037528,-1271.76,0.00028235,2]
[328346986,1717203037538,-250.0,0.00028291,2]
[328346987,1717203037547,-250.0,0.0002834,2]
[328346988,1717203037557,-468.22,0.00028574,2]
[328346989,1717203037566,-200.0,0.00028755,2]
[328346990,1717203037575,-1150.0,0.00029,2]
[328346991,1717203037584,-2000.0,0.00029123,2]
[328346992,1717203037593,-250.0,0.00029174,2]
[328346993,1717203037602,-435.01,0.00029249,2]
[328346994,1717203037611,-2482.17,0.0002933,2]
[328346995,1717203037620,-2008.28901866,0.000299,2]
[328346996,1717203037630,-167.0,0.00029913,2]
[328346997,1717203037639,-667.71,0.00029959,2]
[328346998,1717203037649,-800.54,0.00030009,2]
[328346999,1717203037661,-1000.0,0.000303,2]
[328347000,1717203037671,-1903.0,0.000304,2]
[328347001,1717203037680,-670.39932534,0.0003059,2]
[328347002,1717203037689,-1396.46182,0.0003059,2]
[328347003,1717203037698,-6179.4995,0.00030696,2]
[328347004,1717203037707,-7500.0,0.00030696,2]
[328347005,1717203037717,-21727.92393327,0.00030796,2]
[328347006,1717203037793,-1624.56817508,0.00030796,2]
[328347008,1717203040553,-2000.0,0.00030796,2]
[328347009,1717203041296,-916.68424959,0.00030796,2]
[328347034,1717203045640,-976.42462116,0.00024384,2]
[328347035,1717203045650,-257.58103386,0.00024384,2]
[328347036,1717203045660,-500.0,0.00024384,2]
[328347037,1717203045669,-250.0,0.00030254,2]
[328347038,1717203045682,-107334.2376423,0.00030796,2]
[328347039,1717203045934,-11561.40840021,0.00030796,2]
[328347040,1717203045947,-32626.81261723,0.00030796,2]
[328347041,1717203045959,-2606.014868,0.00030796,2]
[328347042,1717203045970,-32005.7936756,0.00030796,2]
[328347043,1717203045982,-2825.04658628,0.00030796,2]
[328347044,1717203045994,-467.56825928,0.00030796,2]
[328347045,1717203046006,-6370.17133023,0.00030796,2]
[328347046,1717203046017,-1012.56800878,0.00030796,2]
[328347047,1717203046028,-897.58999998,0.00030796,2]
[328347063,1717203611180,160.74,0.00026309,120]
[328347070,1717203939194,-542.00347646,0.00017156,2]
[328347071,1717203939219,-648.0,0.00017157,2]
[328347072,1717203939241,-237.4646,0.00017159,2]
[328347073,1717203939264,-64.45466521,0.00018288,2]
[328347092,1717204041131,-919.5559785,0.00018288,2]
[328347097,1717204231977,-150.0,0.00018287,2]
[328347098,1717204231986,-300.0,0.00018287,2]
[328347099,1717204231995,-1501.77727144,0.00018287,2]
[328347100,1717204232006,-1564.72715706,0.00018288,2]
[328347101,1717204232015,-1045.47618149,0.00018288,2]
[328347102,1717204232025,-2437.97850439,0.00018288,2]
[328347103,1717204232036,-35097.73967311,0.00018288,2]
[328347104,1717204232046,-155.0,0.00020115,2]
[328347105,1717204232056,-210.0,0.00020116,2]
[328347106,1717204232065,-194.53,0.00021258,2]
[328347107,1717204232076,-1760.0,0.000215,2]
[328347108,1717204232085,-293.0,0.00022127,2]
[328347109,1717204232095,-473.22827161,0.00024339,2]
[328347110,1717204232104,-282.0,0.0002434,2]
[328347111,1717204232114,-159.65,0.00024384,2]
[328347112,1717204232123,-172.76,0.00024384,2]
[328347113,1717204232134,-1050.0,0.00025,2]
[328347114,1717204232143,-928.48620822,0.00025,2]
[328347115,1717204232152,-579.69,0.00025247,2]
[328347116,1717204232162,-446.21121734,0.00026309,2]
[328347117,1717204232171,-500.0,0.00026309,2]
[328347118,1717204232181,-1201.56349463,0.00026309,2]
[328347119,1717204232191,-257.58103386,0.00026309,2]
[328347120,1717204232200,-200.0,0.00026343,2]
[328347121,1717204232209,-4601.65,0.00026477,2]
[328347122,1717204232219,-363.45,0.00026583,2]
[328347123,1717204232228,-250.0,0.00026768,2]
[328347124,1717204232238,-250.0,0.00026779,2]
[328347125,1717204232247,-1000.0,0.00026817,2]
[328347126,1717204232256,-200.0,0.00026853,2]
[328347127,1717204232266,-1266.35,0.00026864,2]
[328347129,1717204232275,-687.38,0.00026883,2]
[328347131,1717204232284,-250.0,0.0002693,2]
[328347133,1717204232293,-1100.0,0.00027,2]
[328347134,1717204232302,-166.72,0.00027003,2]
[328347136,1717204232311,-2000.0,0.00027118,2]
[328347138,1717204232320,-579.69,0.00027511,2]
[328347140,1717204232330,-2300.0,0.000277,2]
[328347141,1717204232339,-428.45631643,0.00027802,2]
[328347142,1717204232348,-163.36,0.00028228,2]
[328347143,1717204232357,-1150.0,0.00029,2]
[328347144,1717204232366,-180.0,0.00029175,2]
[328347145,1717204232375,-1000.0,0.000292,2]
[328347146,1717204232384,-363.45,0.00029323,2]
[328347147,1717204232394,-6629.48571753,0.00029411,2]
[328347148,1717204232404,-454.26464379,0.00029635,2]
[328347149,1717204232413,-579.69,0.00029775,2]
[328347150,1717204232422,-173.15,0.00029846,2]
[328347151,1717204232431,-2008.28901866,0.000299,2]
[328347152,1717204232441,-411.0,0.0003,7]
[328347153,1717204232450,-1000.0,0.00030169,2]
[328347154,1717204232460,-1000.0,0.000303,2]
[328347155,1717204232469,-2300.41408164,0.000304,2]
[328347156,1717204232478,-1499.3910483,0.00030597,10]
[328347157,1717204232488,-460.4785,0.00030696,2]
[328347158,1717204232497,-313.71111822,0.00030696,2]
[328347159,1717204232506,-294.97042758,0.00030696,2]
[328347160,1717204232515,-93565.83996251,0.00030697,2]
[328347161,1717204232527,-293.26397614,0.00030697,2]
[328347162,1717204232539,-650.23905597,0.00030697,2]
[328347163,1717204232550,-860.35582076,0.00030697,2]
[328347164,1717204232565,-765.5160698,0.00030697,2]
[328347165,1717204232577,-3862.52515412,0.00030697,2]
[328347182,1717204238051,-1310.26606,0.0003049,2]
[328347183,1717204238062,-2.2599607,0.00030697,2]
[328347184,1717204238071,-32543.61909931,0.00030697,2]
[328347202,1717204241512,-226.49538654,0.000201,2]
[328347203,1717204241522,-81305.24590069,0.00030697,2]
[328347204,1717204241531,-1000.0,0.00030697,2]
[328347205,1717204241541,-2000.0,0.00030796,2]
[328347206,1717204241550,-200.0,0.00030796,2]
[328347207,1717204241559,-1635.92095652,0.00030796,2]
[328347208,1717204241571,-364.07904348,0.00030796,2]
[328347209,1717204241580,-143.19695652,0.00030796,2]
[328347210,1717204241591,-56.80304348,0.00030796,2]
[328347211,1717204241601,-394.44100931,0.00030797,2]
[328347212,1717204241610,-167.14571764,0.00030886,2]
[328347213,1717204241619,-1152.75812541,0.00030886,10]
[328347214,1717204241630,-346.63292289,0.00030886,10]
[328347215,1717204241640,-12.5209243,0.00030896,4]
[328347216,1717204242117,-3054.521661,0.00030896,4]
[328347217,1717204242129,-752.04043999,0.00030896,4]
[328347218,1717204242154,-1457.80231832,0.00030896,4]
[328347220,1717204242854,-6790.78450001,0.00030896,4]
[328347221,1717204242867,-1309.15827183,0.00030896,4]
[328347222,1717204242878,-300823.67783638,0.00030896,4]
[328347223,1717204242888,-2000.0,0.00030897,2]
[328347224,1717204242897,-200.0,0.00030897,2]
[328347225,1717204242908,-1000.0,0.000309,2]
[328347226,1717204242917,-266.0,0.00031,8]
[328347227,1717204242926,-1200.0,0.00031,2]
[328347228,1717204242935,-849.10374278,0.00031002,7]
[328347229,1717204242945,-150.73332622,0.0003101,7]
[328347230,1717204242954,-236.25971007,0.00031012,7]
[328347231,1717204242964,-155.35178732,0.00031016,7]
[328347232,1717204242974,-294.97042753,0.00031054,2]
[328347233,1717204242982,-2000.0,0.00031104,2]
[328347234,1717204242992,-200.0,0.00031104,2]
[328347235,1717204243001,-1695.67099797,0.00031104,2]
[328347236,1717204243011,-200.0,0.00031104,2]
[328347237,1717204243020,-236.25971007,0.00031122,7]
[328347239,1717204243193,-236.25971007,0.00031172,7]
[328347240,1717204243204,-1499.3910483,0.00031175,10]
[328347241,1717204243214,-1001.7112,0.00031199,2]
[328347242,1717204243223,-155.35178732,0.00031205,7]
[328347243,1717204243232,-2000.0,0.00031206,2]
[328347244,1717204243242,-200.0,0.00031206,2]
[328347245,1717204243252,-236.25971007,0.00031243,7]
[328347246,1717204243263,-236.25971007,0.00031263,7]
[328347247,1717204243272,-155.35178732,0.00031264,7]
[328347248,1717204243282,-152.81332526,0.00031284,7]
[328347249,1717204243293,-150.73332622,0.00031287,7]
[328347250,1717204243302,-166.29644053,0.00031316,7]
[328347252,1717204243311,-294.97042753,0.00031411,2]
[328347253,1717204243321,-2000.0,0.00031415,2]
[328347254,1717204243333,-200.0,0.00031415,2]
[328347255,1717204243342,-200.0,0.00031415,2]
[328347256,1717204243351,-1499.3910483,0.00031465,10]
[328347257,1717204243361,-154.28996832,0.00031474,7]
[328347258,1717204243370,-19373.05471339,0.000315,4]
[328347259,1717204243379,-1000.0,0.000315,2]
[328347260,1717204243388,-2000.0,0.00031518,2]
[328347261,1717204243398,-200.0,0.00031518,2]
[328347262,1717204243407,-153.21913361,0.00031524,7]
[328347263,1717204243417,-849.10374278,0.00031541,7]
[328347264,1717204243427,-150.73332622,0.000316,7]
[328347265,1717204243436,-155.35178732,0.00031602,7]
[328347266,1717204243446,-153.03564067,0.00031639,7]
[328347267,1717204243456,-150.73332622,0.00031649,7]
[328347268,1717204243465,-153.03564068,0.00031723,7]
[328347269,1717204243475,-2000.0,0.00031729,2]
[328347270,1717204243484,-200.0,0.00031729,2]
[328347272,1717204243494,-236.25971007,0.00031734,7]
[328347273,1717204243503,-1499.3910483,0.00031754,10]
[328347274,1717204243512,-154.28996832,0.00031768,7]
[328347275,1717204243522,-849.10374278,0.00031769,7]
[328347276,1717204243531,-294.97042753,0.00031769,2]
[328347277,1717204243540,-161.07108045,0.00031789,7]
[328347278,1717204243549,-154.28996832,0.00031796,7]
[328347279,1717204243558,-12412.01547923,0.000318,2]
[328347280,1717204243568,-2000.0,0.00031833,2]
[328347281,1717204243578,-200.0,0.00031833,2]
[328347282,1717204243587,-236.25971007,0.00031902,7]
[328347283,1717204243596,-154.28996832,0.00031934,7]
[328347284,1717204243606,-153.21913361,0.00031938,7]
[328347285,1717204243615,-849.10374278,0.00031996,7]
[328347286,1717204243626,-579.69,0.00032039,2]
[328347287,1717204243635,-1499.3910483,0.00032043,10]
[328347288,1717204243644,-2000.0,0.00032046,2]
[328347289,1717204243655,-200.0,0.00032046,2]
[328347290,1717204243665,-363.45,0.00032062,2]
[328347291,1717204243674,-849.10374278,0.00032097,7]
[328347292,1717204243684,-155.35178732,0.00032117,7]
[328347293,1717204243693,-294.97042753,0.00032127,2]
[328347294,1717204243703,-849.10374278,0.0003213,7]
[328347295,1717204243712,-2000.0,0.00032152,2]
[328347296,1717204243722,-200.0,0.00032152,2]
[328347297,1717204243732,-849.10374278,0.00032158,7]
[328347298,1717204243741,-155.35178732,0.00032182,7]
[328347299,1717204243750,-154.04946269,0.00032187,7]
[328347300,1717204243761,-236.25971007,0.00032215,7]
[328347301,1717204243770,-154.04946269,0.00032247,7]
[328347302,1717204243779,-236.25971007,0.00032284,7]
[328347303,1717204243789,-150.73332622,0.00032303,7]
[328347304,1717204243798,-152.81332526,0.0003232,7]
[328347305,1717204243807,-870.49,0.00032329,2]
[328347306,1717204243817,-1499.3910483,0.00032332,10]
[328347307,1717204243833,-205.0,0.00032398,5]
[328347308,1717204243842,-150.73332622,0.00032414,7]
[328347309,1717204243851,-150.0,0.00032437,7]
[328347310,1717204243859,-327.41,0.00032466,2]